Workbook

Sheet Enable Macros (hidden)
AA1: ' this module is for code that is very specific to a particular assignment, It is not archived to the code vault
B2: Budget
B3: Cellular
B4: Calls | AA4: Sub loadAssignmentSpecificTools(f As frmSubmit)
B5: Data | AA5: 'this proc is called by frmSubmit to build names of assignment-specific tools
B6: Messages
B7: CashFlow | AA7: 'f.cboTool.AddItem "Show Time"
AA9: End Sub
AA10: Function runAssignmentSpecificTool(f As frmSubmit) As Boolean
AA11: runAssignmentSpecificTool = True
AA12: Select Case f.cboTool.value
AA13: ' Case "Show Time": show_time f
AA14: Case Else: runAssignmentSpecificTool = False
AA15: End Select
AA16: End Function
AA19: Sub assignmentSpecificCode(Optional junk As Boolean)
AA21: End Sub

Sheet Budget
B2: Prepare a personal budget for one month. Be sure to think through your sources of income and expenses. Be as detailed as you wish; but include cells that calculate the following: Income (which calculates the sum of all income sources), Expenses (which calculates the sum of all expenses), and Savings (which calculates the difference between the total income and expenses). After completing your budget, complete the tasks to create named ranges that reference the important cells outlined above.
D9: Monthly Budget
B10: Income
B11: Fulltime Job | C11: 4800
B12: Tuition | C12: 1200
B13: Support | C13: 1800
B14: Interest | C14: 700
C16: =SUM(Income) -> 8500
B18: Expense
B19: Rent | C19: 1000
B20: Electricity/Gas Bill | C20: 500
B21: Wifi | C21: 60
B22: Food | C22: 1000
B23: Alcohol/Party | C23: 800
B24: Fuel | C24: 400
C25: =SUM(Expenses) -> 3760
B27: Savings
B28: Ending balance | C28: =SUM(Income)-SUM(Expenses) -> 4740

Sheet Cellular
B2: Plan Options | E2: Usage Summary | H2: Plan Costs
B3: Option 1 - Pay-as-you-go | E3: Calls | H3: Option 1 - Pay-as-you-go
B4: Minute Charges | C4: 0.05 | E4: Weekday Daytime Minutes | F4: =SUMIF(Calls!$H$3:$H$554,Cellular!E4,Calls!$I$3:$I$554) -> 947 | H4: Minute Charges | I4: =F6*C4 -> 85.3
B5: Data Charges per Megabyte | C5: 0.03 | E5: Evening & Weekend Minutes | F5: =F6-F4 -> 759 | H5: Data Charges** | I5: =C5*F8*1024 -> 24.40520508
B6: Text Messages Included (no media) | C6: 500 | E6: Total Minutes Used | F6: =SUM(Calls!$I$3:$I$554) -> 1706 | H6: Text Message Charges | I6: =(F11-C6)*C7 -> 9.9
B7: Text Message Charges | C7: 0.05 | H7: Media Message Charges | I7: =F12*C8 -> 17.9
B8: Media Message Charges | C8: 0.1 | E8: Data Used (gigabytes) | F8: =SUM(Data!D3:D766)/F16 -> 0.7944402695
H9: Total Charges | I9: =SUM(I4:I7) -> 137.5052051
B10: Option 2 - Rate Plan w/Overages | E10: Messaging | H10: Taxes and Fees (cell F15) | I10: =I9*F15 -> 24.75093691
B11: Monthly Cost | C11: 89 | E11: Text Messages Sent | F11: =COUNTIF(Messages!D3:D879,"Text") -> 698 | H11: Total Bill | I11: =SUM(I9:I10) -> 162.256142
B12: Minutes Included* | C12: 700 | E12: Media Messages Sent | F12: =COUNTIF(Messages!D3:D879,"Media") -> 179
B13: Data Included (gigabytes) | C13: 1 | E13: Total Messages Sent | F13: =SUM(F11:F12) -> 877 | H13: Option 2 - Rate Plan w/Overages
B14: Messages (any type) Included | C14: 1000 | H14: Monthly Cost | I14: =C11 -> 89
B15: Over-minute Charges | C15: 0.1 | E15: Cellular Tax/Fee Rate | F15: 0.18 | H15: Over-minute Charges* | I15: =(F4-C12)*C15 -> 24.7
B16: Over-data Charges per megabyte | C16: 0.05 | E16: # Kilobytes in a Gigabyte** | F16: 1048576 | H16: Over-data Charges** | I16: =IF(F8>C13,(F8-C13)*1024*C16,0) -> 0
B17: Over-message Charges per message | C17: 0.1 | E17: # Megabytes in a Gigabyte** | F17: 1024 | H17: Additional Message Charges | I17: =IF(F13>C14,(F13-C14)*C17,0) -> 0
B19: Option 3 - Unlimited | E19: ** Note: There are 1024 kilobytes in a megabyte and 1024 megabytes in a gigabyte. Therefore there are 1048576 kilobytes in a gigabyte (1024 x 1024). | H19: Total Charges | I19: =SUM(I14:I17) -> 113.7
B20: Rate | C20: 119 | H20: Taxes and Fees (cell F15) | I20: =I19*F15 -> 20.466
H21: Total Bill | I21: =SUM(I19:I20) -> 134.166
B22: * Night and weekend minutes are free for Option 2
H23: Option 3 - Unlimited
B24: You are planning to switch your cell phone provider and there are three options available to you. You could choose a pay-as-you-go plan, a traditional plan (which includes an allowance for minutes, data, and text and penalties for exceeding these allowances), and an unlimited plan. You want to evaluate which plan will be best for you. You have imported your calls, data usage, and text message usage from the last month with your previous provider into separate worksheets in the workbook (Calls, Data, and Messages, respectively) so that you can how much each plan would cost you based on your usage that month. Complete the tasks to compare your bill for each plan option. | H24: Monthly Cost | I24: =C20 -> 119
H26: Total Charges | I26: =I24 -> 119
H27: Taxes and Fees (cell F15) | I27: =I26*F15 -> 21.42
H28: Total Bill | I28: =SUM(I26:I27) -> 140.42

Sheet Calls
B2: Day | C2: Date | D2: Time | E2: Minutes | F2: Weekday? | G2: Daytime? | H2: Weekday/Daytime? | I2: Time Charged
B3: Monday | C3: 2012-10-01 | D3: 11:28:00 | E3: 1.62 | F3: =IF(OR(B3="Sunday",B3="Saturday"),"No","Yes") -> Yes | G3: =IF(D3<0.7916,"Yes","No") -> Yes | H3: =IF(AND(F3="yes",G3="yes"),"Weekday Daytime Minutes","Evening & Weekend Minutes") -> Weekday Daytime Minutes | I3: =ROUNDUP(E3,0) -> 2
B4: Monday | C4: 2012-10-01 | D4: 12:38:00 | E4: 2.24 | F4: =IF(OR(B4="Sunday",B4="Saturday"),"No","Yes") -> Yes | G4: =IF(D4<0.7916,"Yes","No") -> Yes | H4: =IF(AND(F4="yes",G4="yes"),"Weekday Daytime Minutes","Evening & Weekend Minutes") -> Weekday Daytime Minutes | I4: =ROUNDUP(E4,0) -> 3
B5: Monday | C5: 2012-10-01 | D5: 13:10:00 | E5: 0.46 | F5: Yes | G5: Yes | H5: Weekday Daytime Minutes | I5: 1
B6: Monday | C6: 2012-10-01 | D6: 13:16:00 | E6: 0.27 | F6: Yes | G6: Yes | H6: Weekday Daytime Minutes | I6: 1
B7: Monday | C7: 2012-10-01 | D7: 13:20:00 | E7: 4.98 | F7: Yes | G7: Yes | H7: Weekday Daytime Minutes | I7: 5
B8: Monday | C8: 2012-10-01 | D8: 14:41:00 | E8: 0.44 | F8: Yes | G8: Yes | H8: Weekday Daytime Minutes | I8: 1
B9: Monday | C9: 2012-10-01 | D9: 14:49:00 | E9: 1.57 | F9: Yes | G9: Yes | H9: Weekday Daytime Minutes | I9: 2
B10: Monday | C10: 2012-10-01 | D10: 15:33:00 | E10: 0.25 | F10: Yes | G10: Yes | H10: Weekday Daytime Minutes | I10: 1
B11: Monday | C11: 2012-10-01 | D11: 15:37:00 | E11: 0.08 | F11: Yes | G11: Yes | H11: Weekday Daytime Minutes | I11: 1
B12: Monday | C12: 2012-10-01 | D12: 15:41:00 | E12: 2.07 | F12: Yes | G12: Yes | H12: Weekday Daytime Minutes | I12: 3
B13: Monday | C13: 2012-10-01 | D13: 16:12:00 | E13: 1.3 | F13: Yes | G13: Yes | H13: Weekday Daytime Minutes | I13: 2
B14: Monday | C14: 2012-10-01 | D14: 17:04:00 | E14: 0.36 | F14: Yes | G14: Yes | H14: Weekday Daytime Minutes | I14: 1
B15: Monday | C15: 2012-10-01 | D15: 17:08:00 | E15: 0.72 | F15: Yes | G15: Yes | H15: Weekday Daytime Minutes | I15: 1
B16: Monday | C16: 2012-10-01 | D16: 17:20:00 | E16: 3.5 | F16: Yes | G16: Yes | H16: Weekday Daytime Minutes | I16: 4
B17: Monday | C17: 2012-10-01 | D17: 18:30:00 | E17: 3.45 | F17: Yes | G17: Yes | H17: Weekday Daytime Minutes | I17: 4
B18: Monday | C18: 2012-10-01 | D18: 19:39:00 | E18: 1.29 | F18: Yes | G18: No | H18: Evening & Weekend Minutes | I18: 2
B19: Monday | C19: 2012-10-01 | D19: 20:35:00 | E19: 0.05 | F19: Yes | G19: No | H19: Evening & Weekend Minutes | I19: 1
B20: Monday | C20: 2012-10-01 | D20: 20:38:00 | E20: 2.75 | F20: Yes | G20: No | H20: Evening & Weekend Minutes | I20: 3
B21: Tuesday | C21: 2012-10-02 | D21: 10:00:00 | E21: 2.58 | F21: Yes | G21: Yes | H21: Weekday Daytime Minutes | I21: 3
B22: Tuesday | C22: 2012-10-02 | D22: 10:31:00 | E22: 0.83 | F22: Yes | G22: Yes | H22: Weekday Daytime Minutes | I22: 1
B23: Tuesday | C23: 2012-10-02 | D23: 10:41:00 | E23: 0.36 | F23: Yes | G23: Yes | H23: Weekday Daytime Minutes | I23: 1
B24: Tuesday | C24: 2012-10-02 | D24: 10:45:00 | E24: 2.18 | F24: Yes | G24: Yes | H24: Weekday Daytime Minutes | I24: 3
B25: Tuesday | C25: 2012-10-02 | D25: 11:56:00 | E25: 1.29 | F25: Yes | G25: Yes | H25: Weekday Daytime Minutes | I25: 2
B26: Tuesday | C26: 2012-10-02 | D26: 12:25:00 | E26: 1.51 | F26: Yes | G26: Yes | H26: Weekday Daytime Minutes | I26: 2
B27: Tuesday | C27: 2012-10-02 | D27: 12:53:00 | E27: 0.14 | F27: Yes | G27: Yes | H27: Weekday Daytime Minutes | I27: 1
B28: Tuesday | C28: 2012-10-02 | D28: 13:02:00 | E28: 4.18 | F28: Yes | G28: Yes | H28: Weekday Daytime Minutes | I28: 5
B29: Tuesday | C29: 2012-10-02 | D29: 13:48:00 | E29: 1.7 | F29: Yes | G29: Yes | H29: Weekday Daytime Minutes | I29: 2
B30: Tuesday | C30: 2012-10-02 | D30: 14:39:00 | E30: 5.6 | F30: Yes | G30: Yes | H30: Weekday Daytime Minutes | I30: 6
B31: Tuesday | C31: 2012-10-02 | D31: 15:49:00 | E31: 1 | F31: Yes | G31: Yes | H31: Weekday Daytime Minutes | I31: 1
B32: Tuesday | C32: 2012-10-02 | D32: 16:03:00 | E32: 0.82 | F32: Yes | G32: Yes | H32: Weekday Daytime Minutes | I32: 1
B33: Tuesday | C33: 2012-10-02 | D33: 17:33:00 | E33: 1.75 | F33: Yes | G33: Yes | H33: Weekday Daytime Minutes | I33: 2
B34: Tuesday | C34: 2012-10-02 | D34: 17:54:00 | E34: 1.35 | F34: Yes | G34: Yes | H34: Weekday Daytime Minutes | I34: 2
B35: Tuesday | C35: 2012-10-02 | D35: 18:38:00 | E35: 0.34 | F35: Yes | G35: Yes | H35: Weekday Daytime Minutes | I35: 1
B36: Tuesday | C36: 2012-10-02 | D36: 19:09:00 | E36: 0.65 | F36: Yes | G36: No | H36: Evening & Weekend Minutes | I36: 1
B37: Tuesday | C37: 2012-10-02 | D37: 19:33:00 | E37: 0.36 | F37: Yes | G37: No | H37: Evening & Weekend Minutes | I37: 1
B38: Tuesday | C38: 2012-10-02 | D38: 20:23:00 | E38: 3.84 | F38: Yes | G38: No | H38: Evening & Weekend Minutes | I38: 4
B39: Tuesday | C39: 2012-10-02 | D39: 21:11:00 | E39: 0.4 | F39: Yes | G39: No | H39: Evening & Weekend Minutes | I39: 1
B40: Tuesday | C40: 2012-10-02 | D40: 21:15:00 | E40: 1 | F40: Yes | G40: No | H40: Evening & Weekend Minutes | I40: 1
B41: Tuesday | C41: 2012-10-02 | D41: 21:30:00 | E41: 1.2 | F41: Yes | G41: No | H41: Evening & Weekend Minutes | I41: 2
B42: Tuesday | C42: 2012-10-02 | D42: 22:48:00 | E42: 2.5 | F42: Yes | G42: No | H42: Evening & Weekend Minutes | I42: 3
B43: Wednesday | C43: 2012-10-03 | D43: 11:07:00 | E43: 0.57 | F43: Yes | G43: Yes | H43: Weekday Daytime Minutes | I43: 1
B44: Wednesday | C44: 2012-10-03 | D44: 11:15:00 | E44: 0.22 | F44: Yes | G44: Yes | H44: Weekday Daytime Minutes | I44: 1
B45: Wednesday | C45: 2012-10-03 | D45: 11:21:00 | E45: 0.21 | F45: Yes | G45: Yes | H45: Weekday Daytime Minutes | I45: 1
B46: Wednesday | C46: 2012-10-03 | D46: 11:31:00 | E46: 0.22 | F46: Yes | G46: Yes | H46: Weekday Daytime Minutes | I46: 1
B47: Wednesday | C47: 2012-10-03 | D47: 11:42:00 | E47: 0.38 | F47: Yes | G47: Yes | H47: Weekday Daytime Minutes | I47: 1
B48: Wednesday | C48: 2012-10-03 | D48: 11:47:00 | E48: 0.41 | F48: Yes | G48: Yes | H48: Weekday Daytime Minutes | I48: 1
B49: Wednesday | C49: 2012-10-03 | D49: 11:56:00 | E49: 3.82 | F49: Yes | G49: Yes | H49: Weekday Daytime Minutes | I49: 4
B50: Wednesday | C50: 2012-10-03 | D50: 12:38:00 | E50: 69.3 | F50: Yes | G50: Yes | H50: Weekday Daytime Minutes | I50: 70
B51: Wednesday | C51: 2012-10-03 | D51: 13:55:00 | E51: 1.47 | F51: Yes | G51: Yes | H51: Weekday Daytime Minutes | I51: 2
B52: Wednesday | C52: 2012-10-03 | D52: 14:28:00 | E52: 4.94 | F52: Yes | G52: Yes | H52: Weekday Daytime Minutes | I52: 5
B53: Wednesday | C53: 2012-10-03 | D53: 15:57:00 | E53: 0.29 | F53: Yes | G53: Yes | H53: Weekday Daytime Minutes | I53: 1
B54: Wednesday | C54: 2012-10-03 | D54: 16:02:00 | E54: 0.1 | F54: Yes | G54: Yes | H54: Weekday Daytime Minutes | I54: 1
B55: Wednesday | C55: 2012-10-03 | D55: 16:15:00 | E55: 2.2 | F55: Yes | G55: Yes | H55: Weekday Daytime Minutes | I55: 3
B56: Thursday | C56: 2012-10-04 | D56: 09:13:00 | E56: 2.38 | F56: Yes | G56: Yes | H56: Weekday Daytime Minutes | I56: 3
B57: Thursday | C57: 2012-10-04 | D57: 10:10:00 | E57: 5.45 | F57: Yes | G57: Yes | H57: Weekday Daytime Minutes | I57: 6
B58: Thursday | C58: 2012-10-04 | D58: 11:25:00 | E58: 1.54 | F58: Yes | G58: Yes | H58: Weekday Daytime Minutes | I58: 2
B59: Thursday | C59: 2012-10-04 | D59: 12:01:00 | E59: 0.71 | F59: Yes | G59: Yes | H59: Weekday Daytime Minutes | I59: 1
B60: Thursday | C60: 2012-10-04 | D60: 12:12:00 | E60: 0.12 | F60: Yes | G60: Yes | H60: Weekday Daytime Minutes | I60: 1
B61: Thursday | C61: 2012-10-04 | D61: 12:14:00 | E61: 1.89 | F61: Yes | G61: Yes | H61: Weekday Daytime Minutes | I61: 2
B62: Thursday | C62: 2012-10-04 | D62: 12:58:00 | E62: 1.23 | F62: Yes | G62: Yes | H62: Weekday Daytime Minutes | I62: 2
B63: Thursday | C63: 2012-10-04 | D63: 13:18:00 | E63: 2.82 | F63: Yes | G63: Yes | H63: Weekday Daytime Minutes | I63: 3
B64: Thursday | C64: 2012-10-04 | D64: 14:05:00 | E64: 1.38 | F64: Yes | G64: Yes | H64: Weekday Daytime Minutes | I64: 2
B65: Thursday | C65: 2012-10-04 | D65: 14:36:00 | E65: 0.18 | F65: Yes | G65: Yes | H65: Weekday Daytime Minutes | I65: 1
B66: Thursday | C66: 2012-10-04 | D66: 14:40:00 | E66: 1.33 | F66: Yes | G66: Yes | H66: Weekday Daytime Minutes | I66: 2
B67: Friday | C67: 2012-10-05 | D67: 08:14:00 | E67: 0.02 | F67: Yes | G67: Yes | H67: Weekday Daytime Minutes | I67: 1
B68: Friday | C68: 2012-10-05 | D68: 08:15:00 | E68: 0.14 | F68: =IF(OR(B68="Sunday",B68="Saturday"),"No","Yes") -> Yes | G68: =IF(D68<0.7916,"Yes","No") -> Yes | H68: =IF(AND(F68="yes",G68="yes"),"Weekday Daytime Minutes","Evening & Weekend Minutes") -> Weekday Daytime Minutes | I68: =ROUNDUP(E68,0) -> 1
B69: Friday | C69: 2012-10-05 | D69: 08:25:00 | E69: 2.7 | F69: Yes | G69: Yes | H69: Weekday Daytime Minutes | I69: 3
B70: Friday | C70: 2012-10-05 | D70: 09:07:00 | E70: 0.05 | F70: Yes | G70: Yes | H70: Weekday Daytime Minutes | I70: 1
B71: Friday | C71: 2012-10-05 | D71: 09:08:00 | E71: 3.84 | F71: Yes | G71: Yes | H71: Weekday Daytime Minutes | I71: 4
B72: Friday | C72: 2012-10-05 | D72: 09:56:00 | E72: 3.11 | F72: Yes | G72: Yes | H72: Weekday Daytime Minutes | I72: 4
B73: Friday | C73: 2012-10-05 | D73: 10:31:00 | E73: 0.14 | F73: Yes | G73: Yes | H73: Weekday Daytime Minutes | I73: 1
B74: Friday | C74: 2012-10-05 | D74: 10:37:00 | E74: 0.27 | F74: Yes | G74: Yes | H74: Weekday Daytime Minutes | I74: 1
B75: Friday | C75: 2012-10-05 | D75: 10:47:00 | E75: 4 | F75: Yes | G75: Yes | H75: Weekday Daytime Minutes | I75: 4
B76: Friday | C76: 2012-10-05 | D76: 11:42:00 | E76: 2.93 | F76: Yes | G76: Yes | H76: Weekday Daytime Minutes | I76: 3
B77: Friday | C77: 2012-10-05 | D77: 12:21:00 | E77: 4.2 | F77: Yes | G77: Yes | H77: Weekday Daytime Minutes | I77: 5
B78: Friday | C78: 2012-10-05 | D78: 13:31:00 | E78: 0.38 | F78: Yes | G78: Yes | H78: Weekday Daytime Minutes | I78: 1
B79: Friday | C79: 2012-10-05 | D79: 14:13:00 | E79: 3.29 | F79: Yes | G79: Yes | H79: Weekday Daytime Minutes | I79: 4
B80: Friday | C80: 2012-10-05 | D80: 15:27:00 | E80: 1.4 | F80: Yes | G80: Yes | H80: Weekday Daytime Minutes | I80: 2
B81: Friday | C81: 2012-10-05 | D81: 15:48:00 | E81: 0.4 | F81: Yes | G81: Yes | H81: Weekday Daytime Minutes | I81: 1
B82: Friday | C82: 2012-10-05 | D82: 16:00:00 | E82: 0.09 | F82: Yes | G82: Yes | H82: Weekday Daytime Minutes | I82: 1
B83: Friday | C83: 2012-10-05 | D83: 16:12:00 | E83: 0.34 | F83: Yes | G83: Yes | H83: Weekday Daytime Minutes | I83: 1
B84: Friday | C84: 2012-10-05 | D84: 16:34:00 | E84: 2.1 | F84: Yes | G84: Yes | H84: Weekday Daytime Minutes | I84: 3
B85: Friday | C85: 2012-10-05 | D85: 16:55:00 | E85: 3.76 | F85: Yes | G85: Yes | H85: Weekday Daytime Minutes | I85: 4
B86: Friday | C86: 2012-10-05 | D86: 17:42:00 | E86: 1 | F86: Yes | G86: Yes | H86: Weekday Daytime Minutes | I86: 1
B87: Friday | C87: 2012-10-05 | D87: 18:42:00 | E87: 1.96 | F87: Yes | G87: Yes | H87: Weekday Daytime Minutes | I87: 2
B88: Friday | C88: 2012-10-05 | D88: 19:10:00 | E88: 2.5 | F88: Yes | G88: No | H88: Evening & Weekend Minutes | I88: 3
B89: Saturday | C89: 2012-10-06 | D89: 09:36:00 | E89: 0.82 | F89: No | G89: Yes | H89: Evening & Weekend Minutes | I89: 1
B90: Saturday | C90: 2012-10-06 | D90: 10:13:00 | E90: 2.73 | F90: No | G90: Yes | H90: Evening & Weekend Minutes | I90: 3
B91: Saturday | C91: 2012-10-06 | D91: 10:54:00 | E91: 0.22 | F91: No | G91: Yes | H91: Evening & Weekend Minutes | I91: 1
B92: Saturday | C92: 2012-10-06 | D92: 11:16:00 | E92: 5.1 | F92: No | G92: Yes | H92: Evening & Weekend Minutes | I92: 6
B93: Saturday | C93: 2012-10-06 | D93: 12:07:00 | E93: 0.83 | F93: No | G93: Yes | H93: Evening & Weekend Minutes | I93: 1
B94: Saturday | C94: 2012-10-06 | D94: 12:19:00 | E94: 4.2 | F94: No | G94: Yes | H94: Evening & Weekend Minutes | I94: 5
B95: Saturday | C95: 2012-10-06 | D95: 13:01:00 | E95: 97.4 | F95: No | G95: Yes | H95: Evening & Weekend Minutes | I95: 98
B96: Saturday | C96: 2012-10-06 | D96: 14:46:00 | E96: 1.42 | F96: No | G96: Yes | H96: Evening & Weekend Minutes | I96: 2
B97: Saturday | C97: 2012-10-06 | D97: 15:03:00 | E97: 0.2 | F97: No | G97: Yes | H97: Evening & Weekend Minutes | I97: 1
B98: Saturday | C98: 2012-10-06 | D98: 15:09:00 | E98: 3.27 | F98: No | G98: Yes | H98: Evening & Weekend Minutes | I98: 4
B99: Saturday | C99: 2012-10-06 | D99: 15:49:00 | E99: 0.67 | F99: No | G99: Yes | H99: Evening & Weekend Minutes | I99: 1
B100: Saturday | C100: 2012-10-06 | D100: 16:19:00 | E100: 0.09 | F100: No | G100: Yes | H100: Evening & Weekend Minutes | I100: 1
B101: Saturday | C101: 2012-10-06 | D101: 16:27:00 | E101: 1.59 | F101: No | G101: Yes | H101: Evening & Weekend Minutes | I101: 2
B102: Saturday | C102: 2012-10-06 | D102: 16:50:00 | E102: 1.2 | F102: No | G102: Yes | H102: Evening & Weekend Minutes | I102: 2
B103: Saturday | C103: 2012-10-06 | D103: 17:20:00 | E103: 2.53 | F103: No | G103: Yes | H103: Evening & Weekend Minutes | I103: 3
B104: Saturday | C104: 2012-10-06 | D104: 17:58:00 | E104: 0.49 | F104: No | G104: Yes | H104: Evening & Weekend Minutes | I104: 1
B105: Saturday | C105: 2012-10-06 | D105: 18:20:00 | E105: 0.5 | F105: No | G105: Yes | H105: Evening & Weekend Minutes | I105: 1
B106: Saturday | C106: 2012-10-06 | D106: 18:30:00 | E106: 2.37 | F106: No | G106: Yes | H106: Evening & Weekend Minutes | I106: 3
B107: Saturday | C107: 2012-10-06 | D107: 19:14:00 | E107: 0.17 | F107: No | G107: No | H107: Evening & Weekend Minutes | I107: 1
B108: Saturday | C108: 2012-10-06 | D108: 19:36:00 | E108: 1.47 | F108: No | G108: No | H108: Evening & Weekend Minutes | I108: 2
B109: Saturday | C109: 2012-10-06 | D109: 20:09:00 | E109: 1.45 | F109: No | G109: No | H109: Evening & Weekend Minutes | I109: 2
B110: Saturday | C110: 2012-10-06 | D110: 20:38:00 | E110: 2.78 | F110: No | G110: No | H110: Evening & Weekend Minutes | I110: 3
B111: Sunday | C111: 2012-10-07 | D111: 09:07:00 | E111: 0.05 | F111: No | G111: Yes | H111: Evening & Weekend Minutes | I111: 1
B112: Sunday | C112: 2012-10-07 | D112: 09:10:00 | E112: 0.11 | F112: No | G112: Yes | H112: Evening & Weekend Minutes | I112: 1
B113: Sunday | C113: 2012-10-07 | D113: 09:14:00 | E113: 0.44 | F113: No | G113: Yes | H113: Evening & Weekend Minutes | I113: 1
B114: Sunday | C114: 2012-10-07 | D114: 09:25:00 | E114: 2.18 | F114: No | G114: Yes | H114: Evening & Weekend Minutes | I114: 3
B115: Sunday | C115: 2012-10-07 | D115: 09:49:00 | E115: 0.15 | F115: No | G115: Yes | H115: Evening & Weekend Minutes | I115: 1
B116: Sunday | C116: 2012-10-07 | D116: 09:52:00 | E116: 1.15 | F116: No | G116: Yes | H116: Evening & Weekend Minutes | I116: 2
B117: Sunday | C117: 2012-10-07 | D117: 10:34:00 | E117: 0.18 | F117: No | G117: Yes | H117: Evening & Weekend Minutes | I117: 1
B118: Sunday | C118: 2012-10-07 | D118: 10:40:00 | E118: 0.83 | F118: No | G118: Yes | H118: Evening & Weekend Minutes | I118: 1
B119: Sunday | C119: 2012-10-07 | D119: 10:52:00 | E119: 1.16 | F119: No | G119: Yes | H119: Evening & Weekend Minutes | I119: 2
B120: Sunday | C120: 2012-10-07 | D120: 11:50:00 | E120: 0.01 | F120: No | G120: Yes | H120: Evening & Weekend Minutes | I120: 1
B121: Sunday | C121: 2012-10-07 | D121: 11:50:00 | E121: 0.06 | F121: No | G121: Yes | H121: Evening & Weekend Minutes | I121: 1
B122: Sunday | C122: 2012-10-07 | D122: 11:53:00 | E122: 2.6 | F122: No | G122: Yes | H122: Evening & Weekend Minutes | I122: 3
B123: Sunday | C123: 2012-10-07 | D123: 12:32:00 | E123: 0.12 | F123: No | G123: Yes | H123: Evening & Weekend Minutes | I123: 1
B124: Sunday | C124: 2012-10-07 | D124: 12:35:00 | E124: 2.82 | F124: No | G124: Yes | H124: Evening & Weekend Minutes | I124: 3
B125: Monday | C125: 2012-10-08 | D125: 10:55:00 | E125: 0.52 | F125: Yes | G125: Yes | H125: Weekday Daytime Minutes | I125: 1
B126: Monday | C126: 2012-10-08 | D126: 11:21:00 | E126: 3.3 | F126: Yes | G126: Yes | H126: Weekday Daytime Minutes | I126: 4
B127: Monday | C127: 2012-10-08 | D127: 11:54:00 | E127: 1.08 | F127: Yes | G127: Yes | H127: Weekday Daytime Minutes | I127: 2
B128: Monday | C128: 2012-10-08 | D128: 12:06:00 | E128: 0.05 | F128: Yes | G128: Yes | H128: Weekday Daytime Minutes | I128: 1
B129: Monday | C129: 2012-10-08 | D129: 12:08:00 | E129: 0.14 | F129: Yes | G129: Yes | H129: Weekday Daytime Minutes | I129: 1
B130: Monday | C130: 2012-10-08 | D130: 12:10:00 | E130: 0.02 | F130: Yes | G130: Yes | H130: Weekday Daytime Minutes | I130: 1
B131: Monday | C131: 2012-10-08 | D131: 12:13:00 | E131: 1.36 | F131: Yes | G131: Yes | H131: Weekday Daytime Minutes | I131: 2
B132: Monday | C132: 2012-10-08 | D132: 12:30:00 | E132: 1.66 | F132: =IF(OR(B132="Sunday",B132="Saturday"),"No","Yes") -> Yes | G132: =IF(D132<0.7916,"Yes","No") -> Yes | H132: =IF(AND(F132="yes",G132="yes"),"Weekday Daytime Minutes","Evening & Weekend Minutes") -> Weekday Daytime Minutes | I132: =ROUNDUP(E132,0) -> 2
B133: Monday | C133: 2012-10-08 | D133: 12:59:00 | E133: 0.13 | F133: Yes | G133: Yes | H133: Weekday Daytime Minutes | I133: 1
B134: Monday | C134: 2012-10-08 | D134: 13:08:00 | E134: 0.48 | F134: Yes | G134: Yes | H134: Weekday Daytime Minutes | I134: 1
B135: Monday | C135: 2012-10-08 | D135: 13:56:00 | E135: 0.61 | F135: Yes | G135: Yes | H135: Weekday Daytime Minutes | I135: 1
B136: Monday | C136: 2012-10-08 | D136: 14:39:00 | E136: 0.06 | F136: Yes | G136: Yes | H136: Weekday Daytime Minutes | I136: 1
B137: Monday | C137: 2012-10-08 | D137: 14:40:00 | E137: 1.25 | F137: Yes | G137: Yes | H137: Weekday Daytime Minutes | I137: 2
B138: Monday | C138: 2012-10-08 | D138: 15:26:00 | E138: 0.05 | F138: Yes | G138: Yes | H138: Weekday Daytime Minutes | I138: 1
B139: Monday | C139: 2012-10-08 | D139: 15:32:00 | E139: 1.99 | F139: Yes | G139: Yes | H139: Weekday Daytime Minutes | I139: 2
B140: Monday | C140: 2012-10-08 | D140: 16:09:00 | E140: 1.71 | F140: Yes | G140: Yes | H140: Weekday Daytime Minutes | I140: 2
B141: Tuesday | C141: 2012-10-09 | D141: 08:17:00 | E141: 2.36 | F141: Yes | G141: Yes | H141: Weekday Daytime Minutes | I141: 3
B142: Tuesday | C142: 2012-10-09 | D142: 08:43:00 | E142: 5.8 | F142: Yes | G142: Yes | H142: Weekday Daytime Minutes | I142: 6
B143: Tuesday | C143: 2012-10-09 | D143: 09:41:00 | E143: 1.32 | F143: Yes | G143: Yes | H143: Weekday Daytime Minutes | I143: 2
B144: Tuesday | C144: 2012-10-09 | D144: 10:14:00 | E144: 3.5 | F144: Yes | G144: Yes | H144: Weekday Daytime Minutes | I144: 4
B145: Tuesday | C145: 2012-10-09 | D145: 11:04:00 | E145: 1.96 | F145: Yes | G145: Yes | H145: Weekday Daytime Minutes | I145: 2
B146: Tuesday | C146: 2012-10-09 | D146: 11:48:00 | E146: 0.39 | F146: Yes | G146: Yes | H146: Weekday Daytime Minutes | I146: 1
B147: Tuesday | C147: 2012-10-09 | D147: 11:53:00 | E147: 0.01 | F147: Yes | G147: Yes | H147: Weekday Daytime Minutes | I147: 1
B148: Tuesday | C148: 2012-10-09 | D148: 11:53:00 | E148: 1.46 | F148: Yes | G148: Yes | H148: Weekday Daytime Minutes | I148: 2
B149: Tuesday | C149: 2012-10-09 | D149: 12:27:00 | E149: 2.29 | F149: Yes | G149: Yes | H149: Weekday Daytime Minutes | I149: 3
B150: Tuesday | C150: 2012-10-09 | D150: 13:03:00 | E150: 0.66 | F150: Yes | G150: Yes | H150: Weekday Daytime Minutes | I150: 1
B151: Tuesday | C151: 2012-10-09 | D151: 13:14:00 | E151: 0.47 | F151: Yes | G151: Yes | H151: Weekday Daytime Minutes | I151: 1
B152: Tuesday | C152: 2012-10-09 | D152: 13:28:00 | E152: 0.4 | F152: Yes | G152: Yes | H152: Weekday Daytime Minutes | I152: 1
B153: Tuesday | C153: 2012-10-09 | D153: 13:56:00 | E153: 1.58 | F153: Yes | G153: Yes | H153: Weekday Daytime Minutes | I153: 2
B154: Tuesday | C154: 2012-10-09 | D154: 14:15:00 | E154: 1.54 | F154: Yes | G154: Yes | H154: Weekday Daytime Minutes | I154: 2
B155: Tuesday | C155: 2012-10-09 | D155: 14:37:00 | E155: 1.33 | F155: Yes | G155: Yes | H155: Weekday Daytime Minutes | I155: 2
B156: Tuesday | C156: 2012-10-09 | D156: 14:53:00 | E156: 0.53 | F156: Yes | G156: Yes | H156: Weekday Daytime Minutes | I156: 1
B157: Tuesday | C157: 2012-10-09 | D157: 14:59:00 | E157: 3.14 | F157: Yes | G157: Yes | H157: Weekday Daytime Minutes | I157: 4
B158: Tuesday | C158: 2012-10-09 | D158: 15:50:00 | E158: 2.22 | F158: Yes | G158: Yes | H158: Weekday Daytime Minutes | I158: 3
B159: Wednesday | C159: 2012-10-10 | D159: 12:09:00 | E159: 1.31 | F159: Yes | G159: Yes | H159: Weekday Daytime Minutes | I159: 2
B160: Wednesday | C160: 2012-10-10 | D160: 12:27:00 | E160: 0.45 | F160: Yes | G160: Yes | H160: Weekday Daytime Minutes | I160: 1
B161: Wednesday | C161: 2012-10-10 | D161: 12:32:00 | E161: 0.47 | F161: Yes | G161: Yes | H161: Weekday Daytime Minutes | I161: 1
B162: Wednesday | C162: 2012-10-10 | D162: 12:53:00 | E162: 1.6 | F162: Yes | G162: Yes | H162: Weekday Daytime Minutes | I162: 2
B163: Wednesday | C163: 2012-10-10 | D163: 13:41:00 | E163: 0.04 | F163: Yes | G163: Yes | H163: Weekday Daytime Minutes | I163: 1
B164: Wednesday | C164: 2012-10-10 | D164: 13:46:00 | E164: 0.39 | F164: Yes | G164: Yes | H164: Weekday Daytime Minutes | I164: 1
B165: Wednesday | C165: 2012-10-10 | D165: 13:51:00 | E165: 0.77 | F165: Yes | G165: Yes | H165: Weekday Daytime Minutes | I165: 1
B166: Wednesday | C166: 2012-10-10 | D166: 14:03:00 | E166: 1.69 | F166: Yes | G166: Yes | H166: Weekday Daytime Minutes | I166: 2
B167: Wednesday | C167: 2012-10-10 | D167: 15:05:00 | E167: 0.64 | F167: Yes | G167: Yes | H167: Weekday Daytime Minutes | I167: 1
B168: Wednesday | C168: 2012-10-10 | D168: 15:12:00 | E168: 5.53 | F168: Yes | G168: Yes | H168: Weekday Daytime Minutes | I168: 6
B169: Wednesday | C169: 2012-10-10 | D169: 16:28:00 | E169: 0.04 | F169: Yes | G169: Yes | H169: Weekday Daytime Minutes | I169: 1
B170: Wednesday | C170: 2012-10-10 | D170: 16:29:00 | E170: 0.73 | F170: Yes | G170: Yes | H170: Weekday Daytime Minutes | I170: 1
B171: Wednesday | C171: 2012-10-10 | D171: 16:51:00 | E171: 0.6 | F171: Yes | G171: Yes | H171: Weekday Daytime Minutes | I171: 1
B172: Wednesday | C172: 2012-10-10 | D172: 17:05:00 | E172: 0.98 | F172: Yes | G172: Yes | H172: Weekday Daytime Minutes | I172: 1
B173: Wednesday | C173: 2012-10-10 | D173: 17:16:00 | E173: 0.74 | F173: Yes | G173: Yes | H173: Weekday Daytime Minutes | I173: 1
B174: Wednesday | C174: 2012-10-10 | D174: 17:48:00 | E174: 30.5 | F174: Yes | G174: Yes | H174: Weekday Daytime Minutes | I174: 31
B175: Wednesday | C175: 2012-10-10 | D175: 18:49:00 | E175: 0.32 | F175: Yes | G175: Yes | H175: Weekday Daytime Minutes | I175: 1
B176: Wednesday | C176: 2012-10-10 | D176: 19:18:00 | E176: 2.58 | F176: Yes | G176: No | H176: Evening & Weekend Minutes | I176: 3
B177: Thursday | C177: 2012-10-11 | D177: 11:27:00 | E177: 0.43 | F177: Yes | G177: Yes | H177: Weekday Daytime Minutes | I177: 1
B178: Thursday | C178: 2012-10-11 | D178: 12:06:00 | E178: 3 | F178: Yes | G178: Yes | H178: Weekday Daytime Minutes | I178: 3
B179: Thursday | C179: 2012-10-11 | D179: 13:56:00 | E179: 0.84 | F179: Yes | G179: Yes | H179: Weekday Daytime Minutes | I179: 1
B180: Thursday | C180: 2012-10-11 | D180: 14:10:00 | E180: 0.52 | F180: Yes | G180: Yes | H180: Weekday Daytime Minutes | I180: 1
B181: Thursday | C181: 2012-10-11 | D181: 15:13:00 | E181: 1.92 | F181: Yes | G181: Yes | H181: Weekday Daytime Minutes | I181: 2
B182: Thursday | C182: 2012-10-11 | D182: 15:37:00 | E182: 0.42 | F182: Yes | G182: Yes | H182: Weekday Daytime Minutes | I182: 1
B183: Thursday | C183: 2012-10-11 | D183: 15:47:00 | E183: 2.44 | F183: Yes | G183: Yes | H183: Weekday Daytime Minutes | I183: 3
B184: Thursday | C184: 2012-10-11 | D184: 16:31:00 | E184: 3.24 | F184: Yes | G184: Yes | H184: Weekday Daytime Minutes | I184: 4
B185: Thursday | C185: 2012-10-11 | D185: 17:44:00 | E185: 1.75 | F185: Yes | G185: Yes | H185: Weekday Daytime Minutes | I185: 2
B186: Thursday | C186: 2012-10-11 | D186: 18:22:00 | E186: 1.58 | F186: Yes | G186: Yes | H186: Weekday Daytime Minutes | I186: 2
B187: Thursday | C187: 2012-10-11 | D187: 19:03:00 | E187: 0.9 | F187: Yes | G187: No | H187: Evening & Weekend Minutes | I187: 1
B188: Thursday | C188: 2012-10-11 | D188: 19:21:00 | E188: 0.31 | F188: Yes | G188: No | H188: Evening & Weekend Minutes | I188: 1
B189: Thursday | C189: 2012-10-11 | D189: 19:31:00 | E189: 1.87 | F189: Yes | G189: No | H189: Evening & Weekend Minutes | I189: 2
B190: Thursday | C190: 2012-10-11 | D190: 19:55:00 | E190: 2.42 | F190: Yes | G190: No | H190: Evening & Weekend Minutes | I190: 3
B191: Thursday | C191: 2012-10-11 | D191: 20:33:00 | E191: 1.85 | F191: Yes | G191: No | H191: Evening & Weekend Minutes | I191: 2
B192: Thursday | C192: 2012-10-11 | D192: 21:47:00 | E192: 3.54 | F192: Yes | G192: No | H192: Evening & Weekend Minutes | I192: 4
B193: Thursday | C193: 2012-10-11 | D193: 22:33:00 | E193: 1.03 | F193: Yes | G193: No | H193: Evening & Weekend Minutes | I193: 2
B194: Thursday | C194: 2012-10-11 | D194: 23:40:00 | E194: 0.53 | F194: Yes | G194: No | H194: Evening & Weekend Minutes | I194: 1
B195: Thursday | C195: 2012-10-11 | D195: 1.019444444 | E195: 0.51 | F195: Yes | G195: No | H195: Evening & Weekend Minutes | I195: 1
B196: Thursday | C196: 2012-10-11 | D196: 1.06875 | E196: 1.81 | F196: =IF(OR(B196="Sunday",B196="Saturday"),"No","Yes") -> Yes | G196: =IF(D196<0.7916,"Yes","No") -> No | H196: =IF(AND(F196="yes",G196="yes"),"Weekday Daytime Minutes","Evening & Weekend Minutes") -> Evening & Weekend Minutes | I196: =ROUNDUP(E196,0) -> 2
B197: Thursday | C197: 2012-10-11 | D197: 1.090277778 | E197: 1.51 | F197: Yes | G197: No | H197: Evening & Weekend Minutes | I197: 2
B198: Thursday | C198: 2012-10-11 | D198: 1.113888889 | E198: 1.67 | F198: Yes | G198: No | H198: Evening & Weekend Minutes | I198: 2
B199: Friday | C199: 2012-10-12 | D199: 10:41:00 | E199: 1.29 | F199: Yes | G199: Yes | H199: Weekday Daytime Minutes | I199: 2
B200: Friday | C200: 2012-10-12 | D200: 11:24:00 | E200: 3.02 | F200: Yes | G200: Yes | H200: Weekday Daytime Minutes | I200: 4
B201: Friday | C201: 2012-10-12 | D201: 12:13:00 | E201: 5 | F201: Yes | G201: Yes | H201: Weekday Daytime Minutes | I201: 5
... 353 more rows

Sheet Data
B2: Date | C2: Time | D2: Data Used (Kb)
B3: 2012-10-01 | C3: 10:28:00 | D3: 1068
B4: 2012-10-01 | C4: 11:05:00 | D4: 60
B5: 2012-10-01 | C5: 11:55:00 | D5: 2061
B6: 2012-10-01 | C6: 12:53:00 | D6: 273
B7: 2012-10-01 | C7: 13:26:00 | D7: 2027
B8: 2012-10-01 | C8: 13:32:00 | D8: 63
B9: 2012-10-01 | C9: 13:54:00 | D9: 4
B10: 2012-10-01 | C10: 14:19:00 | D10: 21
B11: 2012-10-01 | C11: 14:38:00 | D11: 62
B12: 2012-10-01 | C12: 15:04:00 | D12: 1181
B13: 2012-10-01 | C13: 16:06:00 | D13: 90
B14: 2012-10-01 | C14: 16:08:00 | D14: 46
B15: 2012-10-01 | C15: 16:33:00 | D15: 476
B16: 2012-10-01 | C16: 17:20:00 | D16: 88
B17: 2012-10-01 | C17: 17:24:00 | D17: 1414
B18: 2012-10-01 | C18: 18:35:00 | D18: 365
B19: 2012-10-01 | C19: 18:38:00 | D19: 2311
B20: 2012-10-01 | C20: 18:46:00 | D20: 34
B21: 2012-10-02 | C21: 11:28:00 | D21: 2040
B22: 2012-10-02 | C22: 12:19:00 | D22: 4104
B23: 2012-10-02 | C23: 12:53:00 | D23: 3069
B24: 2012-10-02 | C24: 13:15:00 | D24: 2361
B25: 2012-10-02 | C25: 13:42:00 | D25: 4071
B26: 2012-10-02 | C26: 14:05:00 | D26: 4038
B27: 2012-10-02 | C27: 14:45:00 | D27: 3054
B28: 2012-10-02 | C28: 15:11:00 | D28: 186
B29: 2012-10-02 | C29: 16:18:00 | D29: 4037
B30: 2012-10-02 | C30: 17:18:00 | D30: 4083
B31: 2012-10-02 | C31: 18:29:00 | D31: 4014
B32: 2012-10-02 | C32: 19:10:00 | D32: 71
B33: 2012-10-02 | C33: 20:53:00 | D33: 10
B34: 2012-10-02 | C34: 21:07:00 | D34: 1260
B35: 2012-10-02 | C35: 21:10:00 | D35: 97
B36: 2012-10-02 | C36: 21:26:00 | D36: 1119
B37: 2012-10-02 | C37: 21:56:00 | D37: 88
B38: 2012-10-03 | C38: 11:31:00 | D38: 361
B39: 2012-10-03 | C39: 12:11:00 | D39: 332
B40: 2012-10-03 | C40: 13:17:00 | D40: 40
B41: 2012-10-03 | C41: 14:18:00 | D41: 328
B42: 2012-10-03 | C42: 15:05:00 | D42: 1435
B43: 2012-10-03 | C43: 15:27:00 | D43: 2382
B44: 2012-10-03 | C44: 15:36:00 | D44: 62
B45: 2012-10-03 | C45: 15:43:00 | D45: 25
B46: 2012-10-03 | C46: 15:49:00 | D46: 2006
B47: 2012-10-03 | C47: 16:19:00 | D47: 4033
B48: 2012-10-03 | C48: 16:43:00 | D48: 86
B49: 2012-10-03 | C49: 17:01:00 | D49: 1091
B50: 2012-10-03 | C50: 17:17:00 | D50: 88
B51: 2012-10-03 | C51: 18:39:00 | D51: 3284
B52: 2012-10-03 | C52: 19:07:00 | D52: 46
B53: 2012-10-03 | C53: 20:59:00 | D53: 2060
B54: 2012-10-03 | C54: 21:23:00 | D54: 4083
B55: 2012-10-03 | C55: 21:34:00 | D55: 1485
B56: 2012-10-03 | C56: 21:40:00 | D56: 2380
B57: 2012-10-03 | C57: 22:02:00 | D57: 55
B58: 2012-10-03 | C58: 22:31:00 | D58: 3357
B59: 2012-10-03 | C59: 22:53:00 | D59: 11
B60: 2012-10-04 | C60: 11:31:00 | D60: 3449
B61: 2012-10-04 | C61: 12:32:00 | D61: 4226
B62: 2012-10-04 | C62: 13:03:00 | D62: 443
B63: 2012-10-04 | C63: 14:12:00 | D63: 88
B64: 2012-10-04 | C64: 15:01:00 | D64: 93
B65: 2012-10-04 | C65: 15:47:00 | D65: 240
B66: 2012-10-04 | C66: 16:17:00 | D66: 72
B67: 2012-10-04 | C67: 17:45:00 | D67: 4072
B68: 2012-10-04 | C68: 18:50:00 | D68: 224
B69: 2012-10-04 | C69: 19:49:00 | D69: 268
B70: 2012-10-04 | C70: 20:52:00 | D70: 378
B71: 2012-10-04 | C71: 21:07:00 | D71: 4244
B72: 2012-10-04 | C72: 22:31:00 | D72: 400
B73: 2012-10-04 | C73: 22:57:00 | D73: 59
B74: 2012-10-04 | C74: 23:02:00 | D74: 22
B75: 2012-10-04 | C75: 23:03:00 | D75: 4037
B76: 2012-10-04 | C76: 23:18:00 | D76: 3061
B77: 2012-10-04 | C77: 23:36:00 | D77: 1388
B78: 2012-10-04 | C78: 1.007638889 | D78: 245
B79: 2012-10-04 | C79: 1.034027778 | D79: 4002
B80: 2012-10-04 | C80: 1.082638889 | D80: 2066
B81: 2012-10-04 | C81: 1.095138889 | D81: 4492
B82: 2012-10-04 | C82: 1.102083333 | D82: 1232
B83: 2012-10-04 | C83: 1.118055556 | D83: 3089
B84: 2012-10-04 | C84: 1.127083333 | D84: 4263
B85: 2012-10-04 | C85: 1.141666667 | D85: 346
B86: 2012-10-04 | C86: 1.152777778 | D86: 56
B87: 2012-10-04 | C87: 1.205555556 | D87: 79
B88: 2012-10-05 | C88: 10:03:00 | D88: 2096
B89: 2012-10-05 | C89: 10:15:00 | D89: 2459
B90: 2012-10-05 | C90: 11:01:00 | D90: 132
B91: 2012-10-05 | C91: 11:32:00 | D91: 4239
B92: 2012-10-05 | C92: 12:09:00 | D92: 1491
B93: 2012-10-05 | C93: 12:25:00 | D93: 114
B94: 2012-10-05 | C94: 12:27:00 | D94: 4016
B95: 2012-10-05 | C95: 12:56:00 | D95: 3188
B96: 2012-10-05 | C96: 13:03:00 | D96: 3290
B97: 2012-10-05 | C97: 13:22:00 | D97: 2293
B98: 2012-10-05 | C98: 14:02:00 | D98: 319
B99: 2012-10-05 | C99: 14:14:00 | D99: 262
B100: 2012-10-05 | C100: 15:02:00 | D100: 2054
B101: 2012-10-05 | C101: 16:24:00 | D101: 6
B102: 2012-10-05 | C102: 16:30:00 | D102: 308
B103: 2012-10-05 | C103: 16:48:00 | D103: 4424
B104: 2012-10-05 | C104: 17:25:00 | D104: 1328
B105: 2012-10-06 | C105: 10:05:00 | D105: 464
B106: 2012-10-06 | C106: 11:34:00 | D106: 16
B107: 2012-10-06 | C107: 11:58:00 | D107: 224
B108: 2012-10-06 | C108: 11:59:00 | D108: 268
B109: 2012-10-06 | C109: 12:18:00 | D109: 26
B110: 2012-10-06 | C110: 13:56:00 | D110: 2092
B111: 2012-10-06 | C111: 14:22:00 | D111: 91
B112: 2012-10-06 | C112: 14:53:00 | D112: 1013
B113: 2012-10-06 | C113: 15:15:00 | D113: 3082
B114: 2012-10-06 | C114: 16:50:00 | D114: 4
B115: 2012-10-06 | C115: 17:20:00 | D115: 174
B116: 2012-10-06 | C116: 17:34:00 | D116: 305
B117: 2012-10-06 | C117: 17:46:00 | D117: 3031
B118: 2012-10-06 | C118: 18:23:00 | D118: 185
B119: 2012-10-06 | C119: 18:33:00 | D119: 4041
B120: 2012-10-06 | C120: 18:42:00 | D120: 97
B121: 2012-10-06 | C121: 18:46:00 | D121: 84
B122: 2012-10-06 | C122: 19:38:00 | D122: 39
B123: 2012-10-06 | C123: 19:57:00 | D123: 145
B124: 2012-10-06 | C124: 20:43:00 | D124: 1064
B125: 2012-10-06 | C125: 20:44:00 | D125: 438
B126: 2012-10-06 | C126: 20:58:00 | D126: 304
B127: 2012-10-06 | C127: 21:12:00 | D127: 2257
B128: 2012-10-06 | C128: 21:13:00 | D128: 360
B129: 2012-10-06 | C129: 21:26:00 | D129: 26
B130: 2012-10-06 | C130: 22:26:00 | D130: 52
B131: 2012-10-06 | C131: 22:45:00 | D131: 327
B132: 2012-10-06 | C132: 23:16:00 | D132: 117
B133: 2012-10-06 | C133: 1.009027778 | D133: 443
B134: 2012-10-06 | C134: 1.010416667 | D134: 48
B135: 2012-10-06 | C135: 1.014583333 | D135: 46
B136: 2012-10-06 | C136: 1.031944444 | D136: 146
B137: 2012-10-06 | C137: 1.053472222 | D137: 10
B138: 2012-10-06 | C138: 1.05625 | D138: 2044
B139: 2012-10-07 | C139: 08:01:00 | D139: 4355
B140: 2012-10-07 | C140: 08:02:00 | D140: 364
B141: 2012-10-07 | C141: 08:06:00 | D141: 92
B142: 2012-10-07 | C142: 08:13:00 | D142: 4441
B143: 2012-10-07 | C143: 08:18:00 | D143: 45
B144: 2012-10-07 | C144: 08:22:00 | D144: 293
B145: 2012-10-07 | C145: 08:31:00 | D145: 40
B146: 2012-10-07 | C146: 09:23:00 | D146: 45
B147: 2012-10-07 | C147: 09:25:00 | D147: 2103
B148: 2012-10-07 | C148: 09:39:00 | D148: 283
B149: 2012-10-07 | C149: 10:18:00 | D149: 1097
B150: 2012-10-07 | C150: 10:35:00 | D150: 331
B151: 2012-10-07 | C151: 11:02:00 | D151: 17
B152: 2012-10-07 | C152: 12:02:00 | D152: 2243
B153: 2012-10-07 | C153: 12:07:00 | D153: 67
B154: 2012-10-07 | C154: 12:49:00 | D154: 1095
B155: 2012-10-07 | C155: 13:26:00 | D155: 15
B156: 2012-10-07 | C156: 13:51:00 | D156: 4248
B157: 2012-10-07 | C157: 13:59:00 | D157: 272
B158: 2012-10-07 | C158: 14:29:00 | D158: 330
B159: 2012-10-07 | C159: 15:44:00 | D159: 92
B160: 2012-10-07 | C160: 16:33:00 | D160: 3496
B161: 2012-10-07 | C161: 16:40:00 | D161: 2060
B162: 2012-10-07 | C162: 17:14:00 | D162: 4052
B163: 2012-10-07 | C163: 17:14:00 | D163: 64
B164: 2012-10-07 | C164: 17:20:00 | D164: 29
B165: 2012-10-07 | C165: 17:30:00 | D165: 0
B166: 2012-10-07 | C166: 18:48:00 | D166: 95
B167: 2012-10-07 | C167: 19:55:00 | D167: 11
B168: 2012-10-08 | C168: 07:16:00 | D168: 424
B169: 2012-10-08 | C169: 07:27:00 | D169: 2427
B170: 2012-10-08 | C170: 08:35:00 | D170: 3099
B171: 2012-10-08 | C171: 09:15:00 | D171: 34
B172: 2012-10-08 | C172: 09:45:00 | D172: 1242
B173: 2012-10-08 | C173: 10:30:00 | D173: 49
B174: 2012-10-08 | C174: 11:34:00 | D174: 2076
B175: 2012-10-08 | C175: 12:29:00 | D175: 39
B176: 2012-10-08 | C176: 13:42:00 | D176: 54
B177: 2012-10-08 | C177: 14:45:00 | D177: 357
B178: 2012-10-08 | C178: 15:52:00 | D178: 88
B179: 2012-10-08 | C179: 16:07:00 | D179: 166
B180: 2012-10-08 | C180: 17:00:00 | D180: 1
B181: 2012-10-08 | C181: 17:03:00 | D181: 187
B182: 2012-10-08 | C182: 18:01:00 | D182: 156
B183: 2012-10-08 | C183: 18:18:00 | D183: 2054
B184: 2012-10-08 | C184: 18:47:00 | D184: 1007
B185: 2012-10-08 | C185: 18:56:00 | D185: 205
B186: 2012-10-08 | C186: 19:13:00 | D186: 1081
B187: 2012-10-08 | C187: 19:19:00 | D187: 203
B188: 2012-10-08 | C188: 19:45:00 | D188: 438
B189: 2012-10-08 | C189: 20:09:00 | D189: 4021
B190: 2012-10-09 | C190: 12:18:00 | D190: 4084
B191: 2012-10-09 | C191: 13:12:00 | D191: 1290
B192: 2012-10-09 | C192: 13:43:00 | D192: 2146
B193: 2012-10-09 | C193: 14:07:00 | D193: 2050
B194: 2012-10-09 | C194: 14:08:00 | D194: 2057
B195: 2012-10-09 | C195: 14:08:00 | D195: 1087
B196: 2012-10-09 | C196: 14:13:00 | D196: 3024
B197: 2012-10-09 | C197: 14:17:00 | D197: 33
B198: 2012-10-09 | C198: 14:18:00 | D198: 20
B199: 2012-10-09 | C199: 14:19:00 | D199: 419
B200: 2012-10-09 | C200: 14:45:00 | D200: 193
B201: 2012-10-09 | C201: 14:48:00 | D201: 67
... 565 more rows

Sheet Messages
B2: Date | C2: Time | D2: Type
B3: 2012-10-01 | C3: 07:33:00 | D3: Text
B4: 2012-10-01 | C4: 08:41:00 | D4: Text
B5: 2012-10-01 | C5: 09:01:00 | D5: Text
B6: 2012-10-01 | C6: 09:19:00 | D6: Text
B7: 2012-10-01 | C7: 09:36:00 | D7: Text
B8: 2012-10-01 | C8: 09:39:00 | D8: Text
B9: 2012-10-01 | C9: 09:45:00 | D9: Text
B10: 2012-10-01 | C10: 10:03:00 | D10: Text
B11: 2012-10-01 | C11: 10:27:00 | D11: Text
B12: 2012-10-01 | C12: 10:51:00 | D12: Text
B13: 2012-10-01 | C13: 10:53:00 | D13: Text
B14: 2012-10-01 | C14: 10:59:00 | D14: Text
B15: 2012-10-01 | C15: 11:03:00 | D15: Text
B16: 2012-10-01 | C16: 11:42:00 | D16: Media
B17: 2012-10-01 | C17: 11:48:00 | D17: Text
B18: 2012-10-01 | C18: 12:19:00 | D18: Text
B19: 2012-10-01 | C19: 12:23:00 | D19: Media
B20: 2012-10-01 | C20: 12:37:00 | D20: Text
B21: 2012-10-01 | C21: 12:50:00 | D21: Text
B22: 2012-10-01 | C22: 13:16:00 | D22: Text
B23: 2012-10-01 | C23: 14:15:00 | D23: Media
B24: 2012-10-01 | C24: 14:55:00 | D24: Text
B25: 2012-10-01 | C25: 15:28:00 | D25: Text
B26: 2012-10-01 | C26: 16:26:00 | D26: Text
B27: 2012-10-01 | C27: 16:37:00 | D27: Text
B28: 2012-10-01 | C28: 16:58:00 | D28: Text
B29: 2012-10-01 | C29: 17:13:00 | D29: Text
B30: 2012-10-01 | C30: 17:19:00 | D30: Text
B31: 2012-10-01 | C31: 18:36:00 | D31: Text
B32: 2012-10-01 | C32: 19:35:00 | D32: Text
B33: 2012-10-01 | C33: 19:37:00 | D33: Text
B34: 2012-10-01 | C34: 20:04:00 | D34: Text
B35: 2012-10-01 | C35: 20:52:00 | D35: Text
B36: 2012-10-01 | C36: 21:05:00 | D36: Text
B37: 2012-10-01 | C37: 21:40:00 | D37: Text
B38: 2012-10-01 | C38: 22:23:00 | D38: Text
B39: 2012-10-01 | C39: 23:03:00 | D39: Text
B40: 2012-10-01 | C40: 1.011111111 | D40: Media
B41: 2012-10-01 | C41: 1.059027778 | D41: Text
B42: 2012-10-01 | C42: 1.095138889 | D42: Media
B43: 2012-10-02 | C43: 08:54:00 | D43: Media
B44: 2012-10-02 | C44: 09:36:00 | D44: Text
B45: 2012-10-02 | C45: 09:40:00 | D45: Text
B46: 2012-10-02 | C46: 09:47:00 | D46: Text
B47: 2012-10-02 | C47: 10:08:00 | D47: Text
B48: 2012-10-02 | C48: 10:12:00 | D48: Text
B49: 2012-10-02 | C49: 10:14:00 | D49: Text
B50: 2012-10-02 | C50: 10:27:00 | D50: Text
B51: 2012-10-02 | C51: 10:35:00 | D51: Media
B52: 2012-10-02 | C52: 10:45:00 | D52: Text
B53: 2012-10-02 | C53: 11:15:00 | D53: Text
B54: 2012-10-02 | C54: 12:03:00 | D54: Text
B55: 2012-10-02 | C55: 12:14:00 | D55: Text
B56: 2012-10-02 | C56: 12:28:00 | D56: Text
B57: 2012-10-02 | C57: 12:34:00 | D57: Text
B58: 2012-10-02 | C58: 13:38:00 | D58: Text
B59: 2012-10-02 | C59: 14:39:00 | D59: Text
B60: 2012-10-02 | C60: 15:52:00 | D60: Text
B61: 2012-10-02 | C61: 16:06:00 | D61: Text
B62: 2012-10-02 | C62: 16:25:00 | D62: Media
B63: 2012-10-02 | C63: 16:32:00 | D63: Media
B64: 2012-10-02 | C64: 17:27:00 | D64: Text
B65: 2012-10-02 | C65: 18:06:00 | D65: Media
B66: 2012-10-02 | C66: 18:13:00 | D66: Media
B67: 2012-10-03 | C67: 09:14:00 | D67: Media
B68: 2012-10-03 | C68: 10:11:00 | D68: Media
B69: 2012-10-03 | C69: 10:19:00 | D69: Text
B70: 2012-10-03 | C70: 10:36:00 | D70: Text
B71: 2012-10-03 | C71: 11:07:00 | D71: Text
B72: 2012-10-03 | C72: 11:33:00 | D72: Media
B73: 2012-10-03 | C73: 11:40:00 | D73: Text
B74: 2012-10-03 | C74: 12:28:00 | D74: Text
B75: 2012-10-03 | C75: 13:05:00 | D75: Text
B76: 2012-10-03 | C76: 13:06:00 | D76: Text
B77: 2012-10-03 | C77: 13:10:00 | D77: Text
B78: 2012-10-03 | C78: 13:51:00 | D78: Text
B79: 2012-10-03 | C79: 14:35:00 | D79: Text
B80: 2012-10-03 | C80: 14:36:00 | D80: Text
B81: 2012-10-03 | C81: 15:18:00 | D81: Text
B82: 2012-10-03 | C82: 15:31:00 | D82: Text
B83: 2012-10-04 | C83: 06:26:00 | D83: Media
B84: 2012-10-04 | C84: 07:51:00 | D84: Text
B85: 2012-10-04 | C85: 08:01:00 | D85: Media
B86: 2012-10-04 | C86: 08:05:00 | D86: Text
B87: 2012-10-04 | C87: 08:09:00 | D87: Text
B88: 2012-10-04 | C88: 09:07:00 | D88: Text
B89: 2012-10-04 | C89: 09:20:00 | D89: Text
B90: 2012-10-04 | C90: 09:31:00 | D90: Text
B91: 2012-10-04 | C91: 09:36:00 | D91: Text
B92: 2012-10-04 | C92: 10:18:00 | D92: Media
B93: 2012-10-04 | C93: 11:43:00 | D93: Text
B94: 2012-10-04 | C94: 12:06:00 | D94: Text
B95: 2012-10-04 | C95: 12:56:00 | D95: Media
B96: 2012-10-04 | C96: 13:53:00 | D96: Media
B97: 2012-10-04 | C97: 14:47:00 | D97: Media
B98: 2012-10-04 | C98: 15:17:00 | D98: Text
B99: 2012-10-04 | C99: 15:56:00 | D99: Text
B100: 2012-10-04 | C100: 16:01:00 | D100: Text
B101: 2012-10-04 | C101: 16:22:00 | D101: Media
B102: 2012-10-04 | C102: 17:35:00 | D102: Text
B103: 2012-10-04 | C103: 17:46:00 | D103: Media
B104: 2012-10-04 | C104: 17:55:00 | D104: Text
B105: 2012-10-04 | C105: 18:24:00 | D105: Text
B106: 2012-10-04 | C106: 19:56:00 | D106: Text
B107: 2012-10-04 | C107: 20:04:00 | D107: Text
B108: 2012-10-04 | C108: 20:16:00 | D108: Text
B109: 2012-10-04 | C109: 20:22:00 | D109: Text
B110: 2012-10-04 | C110: 20:29:00 | D110: Media
B111: 2012-10-04 | C111: 20:46:00 | D111: Text
B112: 2012-10-04 | C112: 21:46:00 | D112: Text
B113: 2012-10-04 | C113: 22:17:00 | D113: Text
B114: 2012-10-04 | C114: 22:40:00 | D114: Text
B115: 2012-10-04 | C115: 23:02:00 | D115: Text
B116: 2012-10-04 | C116: 23:20:00 | D116: Text
B117: 2012-10-04 | C117: 23:23:00 | D117: Text
B118: 2012-10-04 | C118: 23:24:00 | D118: Text
B119: 2012-10-04 | C119: 23:57:00 | D119: Text
B120: 2012-10-04 | C120: 1.040277778 | D120: Text
B121: 2012-10-04 | C121: 1.044444444 | D121: Media
B122: 2012-10-04 | C122: 1.103472222 | D122: Media
B123: 2012-10-05 | C123: 09:02:00 | D123: Text
B124: 2012-10-05 | C124: 09:17:00 | D124: Text
B125: 2012-10-05 | C125: 09:29:00 | D125: Text
B126: 2012-10-05 | C126: 09:35:00 | D126: Text
B127: 2012-10-05 | C127: 09:41:00 | D127: Text
B128: 2012-10-05 | C128: 09:46:00 | D128: Text
B129: 2012-10-05 | C129: 09:47:00 | D129: Text
B130: 2012-10-05 | C130: 09:57:00 | D130: Text
B131: 2012-10-05 | C131: 10:28:00 | D131: Text
B132: 2012-10-05 | C132: 10:45:00 | D132: Text
B133: 2012-10-05 | C133: 11:26:00 | D133: Text
B134: 2012-10-05 | C134: 11:38:00 | D134: Text
B135: 2012-10-05 | C135: 12:28:00 | D135: Text
B136: 2012-10-05 | C136: 13:55:00 | D136: Text
B137: 2012-10-05 | C137: 14:11:00 | D137: Text
B138: 2012-10-05 | C138: 15:21:00 | D138: Media
B139: 2012-10-05 | C139: 15:31:00 | D139: Text
B140: 2012-10-05 | C140: 15:33:00 | D140: Text
B141: 2012-10-05 | C141: 15:47:00 | D141: Text
B142: 2012-10-05 | C142: 16:09:00 | D142: Text
B143: 2012-10-05 | C143: 16:28:00 | D143: Text
B144: 2012-10-05 | C144: 17:27:00 | D144: Text
B145: 2012-10-05 | C145: 18:03:00 | D145: Text
B146: 2012-10-05 | C146: 18:19:00 | D146: Media
B147: 2012-10-05 | C147: 19:06:00 | D147: Text
B148: 2012-10-05 | C148: 20:04:00 | D148: Text
B149: 2012-10-05 | C149: 20:11:00 | D149: Text
B150: 2012-10-05 | C150: 20:47:00 | D150: Text
B151: 2012-10-05 | C151: 21:48:00 | D151: Text
B152: 2012-10-05 | C152: 22:03:00 | D152: Media
B153: 2012-10-05 | C153: 22:44:00 | D153: Text
B154: 2012-10-05 | C154: 22:59:00 | D154: Text
B155: 2012-10-05 | C155: 23:52:00 | D155: Text
B156: 2012-10-05 | C156: 23:54:00 | D156: Text
B157: 2012-10-05 | C157: 1.03125 | D157: Text
B158: 2012-10-05 | C158: 1.060416667 | D158: Text
B159: 2012-10-06 | C159: 07:40:00 | D159: Text
B160: 2012-10-06 | C160: 07:46:00 | D160: Text
B161: 2012-10-06 | C161: 08:25:00 | D161: Text
B162: 2012-10-06 | C162: 09:51:00 | D162: Text
B163: 2012-10-06 | C163: 10:04:00 | D163: Text
B164: 2012-10-06 | C164: 11:28:00 | D164: Text
B165: 2012-10-06 | C165: 11:30:00 | D165: Text
B166: 2012-10-06 | C166: 11:55:00 | D166: Text
B167: 2012-10-06 | C167: 12:07:00 | D167: Text
B168: 2012-10-06 | C168: 12:18:00 | D168: Text
B169: 2012-10-06 | C169: 13:08:00 | D169: Media
B170: 2012-10-06 | C170: 13:29:00 | D170: Text
B171: 2012-10-06 | C171: 13:33:00 | D171: Text
B172: 2012-10-06 | C172: 14:28:00 | D172: Text
B173: 2012-10-06 | C173: 15:01:00 | D173: Text
B174: 2012-10-06 | C174: 15:55:00 | D174: Text
B175: 2012-10-06 | C175: 16:01:00 | D175: Text
B176: 2012-10-06 | C176: 17:05:00 | D176: Text
B177: 2012-10-06 | C177: 17:08:00 | D177: Text
B178: 2012-10-06 | C178: 17:13:00 | D178: Text
B179: 2012-10-06 | C179: 17:13:00 | D179: Media
B180: 2012-10-06 | C180: 17:24:00 | D180: Text
B181: 2012-10-06 | C181: 17:26:00 | D181: Media
B182: 2012-10-06 | C182: 17:30:00 | D182: Text
B183: 2012-10-06 | C183: 17:30:00 | D183: Text
B184: 2012-10-06 | C184: 17:33:00 | D184: Text
B185: 2012-10-06 | C185: 17:47:00 | D185: Text
B186: 2012-10-06 | C186: 18:47:00 | D186: Text
B187: 2012-10-06 | C187: 19:13:00 | D187: Media
B188: 2012-10-06 | C188: 20:17:00 | D188: Text
B189: 2012-10-06 | C189: 20:25:00 | D189: Text
B190: 2012-10-06 | C190: 20:34:00 | D190: Text
B191: 2012-10-06 | C191: 21:18:00 | D191: Media
B192: 2012-10-06 | C192: 22:12:00 | D192: Text
B193: 2012-10-06 | C193: 22:25:00 | D193: Text
B194: 2012-10-06 | C194: 22:45:00 | D194: Text
B195: 2012-10-06 | C195: 22:58:00 | D195: Text
B196: 2012-10-06 | C196: 23:55:00 | D196: Text
B197: 2012-10-07 | C197: 11:05:00 | D197: Text
B198: 2012-10-07 | C198: 12:48:00 | D198: Text
B199: 2012-10-07 | C199: 13:01:00 | D199: Text
B200: 2012-10-07 | C200: 14:58:00 | D200: Text
B201: 2012-10-07 | C201: 15:21:00 | D201: Text
... 678 more rows

Sheet CashFlow
B2: Cash Flow Budget Worksheet
B3: Monthly Interest Rate | C3: 0.015 | L3: Complete the statement of cash flow for January through June by completing the tasks. As part of the process you will need to use a circular reference. You will need to set Excel to handle circular references.
B5: Line of Credit Needed | C5: =10000 -> 10000
C7: December | D7: January | E7: February | F7: March | G7: April | H7: May | I7: June
B8: Beginning Cash Balance | D8: 5000 | E8: =D36 -> 0 | F8: =E36 -> 0 | G8: =F36 -> 0 | H8: =G36 -> 8591.3825 | I8: =H36 -> 20212.61
B10: Cash Inflows (Income):
B11: Customer Payments | D11: 35000 | E11: 45000 | F11: 53000 | G11: 64680 | H11: 76540 | I11: 90540
B12: Cash Sales | D12: 52000 | E12: 62000 | F12: 73500 | G12: 86000 | H12: 100600 | I12: 117700
B13: Total Cash Inflows | D13: =SUM(D11:D12) -> 87000 | E13: =SUM(E11:E12) -> 107000 | F13: =SUM(F11:F12) -> 126500 | G13: =SUM(G11:G12) -> 150680 | H13: =SUM(H11:H12) -> 177140 | I13: =SUM(I11:I12) -> 208240
B15: Cash Outflows (Expenses):
B16: Advertising | D16: 20000 | E16: 30000 | F16: 35000 | G16: 40000 | H16: 50000 | I16: 60000
B17: Loan Interest | D17: =C34*$C$3 -> 0 | E17: =D34*$C$3 -> 186 | F17: -25.5 | G17: 14.6175 | H17: -29.2275 | I17: 0.0075
B18: Insurance | D18: 4500 | E18: 4500 | F18: 4500 | G18: 4500 | H18: 4500 | I18: 4500
B19: Inventory Purchases | D19: 46000 | E19: 53000 | F19: 54500 | G19: 59800 | H19: 71900 | I19: 83300
B20: Office Supplies | D20: 3200 | E20: 3200 | F20: 3200 | G20: 3500 | H20: 4000 | I20: 4000
B21: Payroll | D21: 11000 | E21: 12000 | F21: 13500 | G21: 18100 | H21: 17700 | I21: 23200
B22: Rent or Lease | D22: 12000 | E22: 12000 | F22: 12000 | G22: 12000 | H22: 12000 | I22: 12000
B23: Utilities & Telephone | D23: 2700 | E23: 3000 | F23: 3100 | G23: 3200 | H23: 3500 | I23: 5000
B24: Total Expenses | D24: =SUM(D16:D23) -> 99400 | E24: =SUM(E16:E23) -> 117886 | F24: =SUM(F16:F23) -> 125774.5 | G24: =SUM(G16:G23) -> 141114.6175 | H24: =SUM(H16:H23) -> 163570.7725 | I24: =SUM(I16:I23) -> 192000.0075
B26: Cash Flows (Net): | D26: =D13-D24 -> -12400 | E26: =E13-E24 -> -10886 | F26: =F13-F24 -> 725.5 | G26: =G13-G24 -> 9565.3825 | H26: =H13-H24 -> 13569.2275 | I26: =I13-I24 -> 16239.9925
B28: Shortfall/Surplus Cash | C28: $6000.00* | D28: =SUM(D8,D26) -> -7400 | E28: =SUM(E8,E26) -> -10886 | F28: =SUM(F8,F26) -> 725.5 | G28: =SUM(G8,G26) -> 9565.3825 | H28: =SUM(H8,H26) -> 22160.61 | I28: =SUM(I8,I26) -> 36452.6025
B30: Loan Calculatations
B31: Additional Cash Needed | C31: 0 | D31: 12400 | E31: 10700 | F31: 0 | G31: 0 | H31: 0 | I31: 0
B32: Cash Available to Retire Debt | C32: 6000 | D32: 0 | E32: 0 | F32: =F28 -> 725.5 | G32: =G28 -> 9565.3825 | H32: =H28 -> 22160.61 | I32: =I28 -> 36452.6025
B33: Cash Used to Retire Debt | C33: 1000 | D33: 0 | E33: 0 | F33: 725.5 | G33: =974 -> 974 | H33: =1948 -> 1948 | I33: =0.5 -> 0.5
B34: Loan Balance** | C34: 0 | D34: =D31-(D33+C34) -> 12400 | E34: =E31-(E33+D34) -> -1700 | F34: =F31-(F33+E34) -> 974.5 | G34: =G31-(G33+F34) -> -1948.5 | H34: =H31-(H33+G34) -> 0.5 | I34: =I31-(I33+H34) -> -1
B36: Ending Cash Balance | C36: 5000 | D36: =D32-D33 -> 0 | E36: =E32-E33 -> 0 | F36: =F32-F33 -> 0 | G36: =G32-G33 -> 8591.3825 | H36: =H32-H33 -> 20212.61 | I36: =I32-I33 -> 36452.1025
B38: * Note: there was a loan balance of $1000 in November which was paid to $0 with the cash surplus in December. This is why the beginning cash value in January is $1000 less than the ending cash in December.
B40: ** A loan taken out in any given month cannot be paid off in that month. The earliest a loan will be paid off will be the next month.
